[Event "Icelandic Championship 2022"]
[Site "Selfoss"]
[Date "2022.05.01"]
[Round "9.1"]
[White "Heimisson, Hilmir Freyr"]
[Black "Gretarsson, Hjorvar Steinn"]
[Result "0-1"]
[ECO "A29"]
[WhiteElo "2312"]
[BlackElo "2548"]
[Annotator "TA"]
[PlyCount "142"]
[EventDate "2022.04.21"]
[EventType "tourn"]
[EventCountry "ISL"]
[SourceTitle "playchess.com"]
[Source "ChessBase"]
[SourceQuality "1"]
[TimeControl "40/5400+30:1800+30"]

{[%evp 17,142,21,12,23,14,0,19,0,0,4,21,-58,-67,-91,-91,-87,-104,-114,-57,-50,-56,-58,-42,-46,-57,-88,-66,-82,-80,-84,-69,-75,-71,-71,-68,-72,-83,-73,-65,-131,-92,-93,-61,-79,-49,-77,-55,-109,-108,-114,-99,-112,-103,-104,0,-121,-72,-66,-62,-67,-60,-68,-54,-69,-68,-57,-51,-52,-52,-58,-35,-54,-66,-87,-64,-78,-38,-40,-52,-47,-46,-70,-71,-105,-105,-102,-90,-111,-87,-172,-166,-167,-173,-170,-171,-176,-159,-181,-181,-208,-207,-268,-268,-268,-264,-256,-243,-329,-329,-289,-272,-266,-207,-207,-207,-333,-324,-453,-337,-296,-181,-369,-326,-4998,-1987,-1133,-1012]} 1. c4 {[%emt 0:00:04]} e5 {[%emt 0:06:05]} 2. g3 {[%emt 0:00:24]} Nf6 {[%emt 0:06:03]} 3. Bg2 {[%emt 0:00:11]} d5 {[%emt 0:00:55]} 4. cxd5 {[%emt 0:03:45]} Nxd5 {[%emt 0:00:04]} 5. Nc3 {[%emt 0:00:08]} Nb6 {[%emt 0:00:06]} 6. Nf3 {[%emt 0:00:07]} Nc6 {[%emt 0:00:04]} 7. O-O {[%emt 0:00:36]} Be7 {[%emt 0:00:47]} 8. Rb1 {[%emt 0:00:08]} O-O {[%emt 0:04:36]} 9. b4 {[%emt 0:03:23]} a6 {[%emt 0:02:28]} 10. a3 {[%emt 0:00:07] A29: English Opening: Four Knights Variation with 4 g3.} Be6 {[%emt 0:05:01]} 11. d3 {[%emt 0:03:54]} f6 {[%emt 0:04:51]} 12. Bb2 {[%emt 0:03:50] The position is equal.} Qe8 {[%emt 0:12:56]} 13. Ne4 {[%emt 0:17:15] [#]} a5 $146 {[%emt 0:05:36]} ({Predecessor:} 13... Ba2 14. Rc1 Qf7 15. Nfd2 Bd5 16. Nc5 Bxg2 17. Kxg2 a5 18. bxa5 Nxa5 19. Na4 Qd5+ {½-½ (49) Anderson,G (2323)-Thielen,D (2398) ICCF email 2011}) 14. Nc5 {[%emt 0:09:39]} (14. b5 $11 Na7 15. a4) 14... Ba2 $1 $15 {[%emt 0:05:02]} 15. Rc1 {[%emt 0:23:39]} axb4 {[%emt 0:02:55]} 16. axb4 {[%emt 0:00:06]} Nxb4 {[%emt 0:04:48]} 17. Nh4 {[%emt 0:04:23]} Bxc5 {[%emt 0:06:09]} ({Black should play} 17... Qb5 $17 18. Ne4 (18. Nxb7 Rfb8 $17) 18... Nc6) 18. Rxc5 {[%emt 0:00:08]} c6 {[%emt 0:01:17]} 19. Qd2 {[%emt 0:03:02]} Na6 {[%emt 0:03:00]} 20. Ra5 {[%emt 0:00:29]} Be6 {[%emt 0:01:13]} 21. Ba3 {[%emt 0:05:11] Hoping for Qb2.} Rf7 {[%emt 0:00:15]} 22. Rb1 {[%emt 0:00:14]} Qd8 {[%emt 0:00:48][%cal Ob6c4]} 23. Bc1 {[%emt 0:04:23][%cal Ba3c1,Bc1d2,Bd2a5,Ba5b6][%mdl 32]} Rd7 {[%emt 0:03:18] White must now prevent ...Nc4.} 24. Qe1 {[%emt 0:02:13] [#]} Nc4 $1 {[%emt 0:03:35]} 25. Raa1 {[%emt 0:00:32]} ({But not} 25. dxc4 $2 Rd1 26. Bd2 Rxe1+ 27. Bxe1 g5 $19) 25... Nd6 {[%emt 0:00:26]} 26. Bd2 {[%emt 0:05:46]} Nb5 {[%emt 0:02:09]} 27. Ba5 {[%emt 0:01:01]} Qe8 {[%emt 0:03:55]} 28. Bf1 {[%emt 0:00:32]} ({Better is} 28. Nf3 $15) 28... Nd4 {[%emt 0:04:15] aiming for ...Nc2.} 29. Qc3 {[%emt 0:01:42] Against Nc2} Qf7 {[%emt 0:00:54]} 30. Bb6 {[%emt 0:00:57]} Bh3 {[%emt 0:01:42]} 31. Ng2 {[%emt 0:01:49]} Re8 {[%emt 0:00:51]} 32. Ra4 {[%emt 0:01:01]} ({White should try} 32. Bxd4 $15 exd4 33. Qc1) 32... Nc7 $17 {[%emt 0:01:32][%cal Ba6c7,Bc7e6,Be6d4][%mdl 32]} 33. Qb2 {[%emt 0:02:17][%cal Rb6d4]} Nce6 {[%emt 0:01:36] 0x0.0022a7585651dp-1022s more active pieces.} 34. Rba1 {[%emt 0:00:40]} Rd5 {[%emt 0:03:04] Threatens to win with ...Rb5.} 35. Rb4 {[%emt 0:01:12]} Rd7 {[%emt 0:01:00]} (35... c5 $17 36. Rba4 Rd7) 36. Rb1 {[%emt 0:00:42]} (36. Rba4 $1 $11 {keeps the balance.}) 36... Nb5 {[%emt 0:00:56]} (36... c5 $142 37. Rc4 Rc8) 37. Rh4 {[%emt 0:00:38]} Bxg2 {[%emt 0:00:50]} 38. Bxg2 {[%emt 0:00:23]} Ned4 {[%emt 0:00:36][%cal Ob5c3] Pair of Knights!} 39. e3 {[%emt 0:01:46]} Ne6 {[%emt 0:01:07]} 40. Qb3 {[%emt 0:01:11]} Ng5 {[%emt 0:01:10]} 41. Ra4 {[%emt 0:04:47]} Qxb3 {[%emt 0:01:44]} (41... e4 {with more complications.} 42. d4 Nf3+ 43. Kh1 f5) 42. Rxb3 {[%emt 0:00:02]} Ne6 {[%emt 0:01:17]} 43. h4 {[%emt 0:03:01]} Kf7 {[%emt 0:01:19]} 44. Bh3 {[%emt 0:00:51]} g6 {[%emt 0:02:54]} 45. Kf1 {[%emt 0:03:09]} h5 {[%emt 0:03:16]} 46. f4 {[%emt 0:02:30]} exf4 {[%emt 0:01:03]} 47. gxf4 {[%emt 0:00:18]} f5 {[%emt 0:01:05]} 48. Kf2 {[%emt 0:01:05]} Nd6 {[%emt 0:00:39]} 49. Rc3 {[%emt 0:06:20]} Nc8 {[%emt 0:01:01] White is on the road to losing.} 50. Ba5 {[%emt 0:00:56]} Ne7 {[%emt 0:03:17]} 51. Bg2 {[%emt 0:09:02]} b5 {[%emt 0:02:15]} 52. Ra1 {[%emt 0:01:43]} c5 {[%emt 0:05:49] And now ...Rb8 would win.} 53. Rb3 {[%emt 0:00:54]} (53. Bb6 $17) 53... b4 $19 {[%emt 0:00:39]} 54. d4 {[%emt 0:02:14]} cxd4 {[%emt 0:00:22] Strongly threatening ...Nc5.} 55. Bxb4 {[%emt 0:00:29]} dxe3+ {[%emt 0:03:55]} 56. Rxe3 {[%emt 0:00:09]} Nxf4 {[%emt 0:00:41]} 57. Bf1 {[%emt 0:00:19] Inhibits Nd3+.} Rc8 {[%emt 0:00:49]} 58. Bb5 {[%emt 0:01:38]} Rb7 {[%emt 0:00:49]} 59. Rxe7+ {[%emt 0:00:26]} Rxe7 {[%emt 0:00:06]} 60. Bxe7 {[%emt 0:00:30]} Kxe7 {[%emt 0:00:06][%mdl 4096] Endgame KRB-KRN} 61. Ra6 {[%emt 0:00:32]} Rc5 {[%emt 0:01:01]} 62. Ba4 {[%emt 0:00:32]} Rc3 {[%emt 0:00:58]} 63. Ra7+ {[%emt 0:00:11]} Kf6 {[%emt 0:00:50]} 64. Be8 {[%emt 0:00:18]} Rc8 {[%emt 0:02:46]} 65. Ra6+ {[%emt 0:00:35] [#]} Kg7 $1 {[%emt 0:00:09]} 66. Ra7+ {[%emt 0:00:38]} (66. Kf3 $142 Rxe8 67. Kxf4 Re4+ 68. Kg3) 66... Kh6 {[%emt 0:00:13]} 67. Re7 {[%emt 0:00:41]} Nd5 {[%emt 0:00:15]} 68. Re6 {[%emt 0:00:28]} Nf6 {[%emt 0:00:35]} 69. Ba4 $2 {[%emt 0:00:39]} (69. Rxf6 {is the only way for White.} Rxe8 70. Rf7) 69... Ne4+ {[%emt 0:00:27]} 70. Kf3 $2 {[%emt 0:00:30]} (70. Kg2) 70... Rc3+ {[%emt 0:00:13]} 71. Kf4 {[%emt 0:00:30]} Nc5 {[%emt 0:00:20][%csl LRa4,LRe6] Weighted Error Value: White=0.21 (precise) /Black=0.10 (very precise)} 0-1

[Event "Icelandic Championship 2022"]
[Site "Selfoss"]
[Date "2022.05.01"]
[Round "9.2"]
[White "Stefansson, Vignir Vatnar"]
[Black "Mai, Alexander Oliver"]
[Result "1/2-1/2"]
[ECO "E14"]
[WhiteElo "2484"]
[BlackElo "2207"]
[Annotator "TA"]
[PlyCount "44"]
[EventDate "2022.04.21"]
[EventType "tourn"]
[EventCountry "ISL"]
[SourceTitle "playchess.com"]
[Source "ChessBase"]
[SourceQuality "1"]
[TimeControl "40/5400+30:1800+30"]

{[%evp 21,44,37,50,58,56,66,60,57,78,28,53,0,0,0,0,0,0,0,0,0,0,0,0,0,0]} 1. e3 {[%emt 0:01:53]} d5 {[%emt 0:01:34]} 2. c4 {[%emt 0:01:30]} e6 {[%emt 0:00:38]} 3. Nf3 {[%emt 0:00:29]} Nf6 {[%emt 0:00:17]} 4. d4 {[%emt 0:00:38]} Be7 {[%emt 0:00:49]} 5. Nc3 {[%emt 0:01:22]} O-O {[%emt 0:00:16]} 6. b3 {[%emt 0:01:27]} b6 {[%emt 0:06:10]} 7. Bb2 {[%emt 0:00:23]} Bb7 {[%emt 0:00:25]} 8. Bd3 {[%emt 0:00:11]} c5 {[%emt 0:01:42]} 9. O-O {[%emt 0:00:17]} Nc6 {[%emt 0:01:04]} 10. cxd5 {[%emt 0:01:02]} exd5 {[%emt 0:00:30]} 11. dxc5 {[%emt 0:00:30]} bxc5 12. Rc1 {E14: Queen's Indian: Classical Variation (4 e3).} d4 {[%emt 0:08:36]} 13. exd4 {[%emt 0:02:04]} Nxd4 {[%emt 0:01:15]} 14. Nxd4 {[%emt 0:02:53] White is slightly better.} Qxd4 {[%emt 0:00:49] [#]} 15. Bc4 $146 {[%emt 0:02:00]} (15. Qe2 $16 Qd7 16. Bb5) ({Predecessor:} 15. Qe2 Qd7 16. Na4 Rfe8 17. Rfd1 Bd6 18. Qf1 Qe7 19. Re1 Qc7 20. Bxf6 gxf6 21. h3 Rad8 22. Rxe8+ Rxe8 23. b4 Bh2+ 24. Kh1 Bf4 25. Rc4 Bd2 {0-1 (25) Quaresma,L (2464)-Kubasky,A (2276) ICCF email 1999}) 15... Qh4 {[%emt 0:01:32]} 16. Qe1 {[%emt 0:07:44]} ({White should play} 16. f3 $14) 16... Bxg2 $11 {[%emt 0:17:42] The position is equal.} 17. Kxg2 {[%emt 0:04:46]} ({Don't blunder} 17. Qxe7 $2 Bf3 18. Qc7 Nh5 $19) 17... Qg4+ {[%emt 0:02:40]} 18. Kh1 {[%emt 0:00:04]} Qf3+ {[%emt 0:00:23]} 19. Kg1 {[%emt 0:00:03] [#] Black must now prevent Qe5.} Qg4+ {[%emt 0:01:41]} 20. Kh1 {[%emt 0:00:07]} Qf3+ {[%emt 0:00:03]} 21. Kg1 {[%emt 0:00:06] Strongly threatening Qe5.} Qg4+ {[%emt 0:00:04]} 22. Kh1 {[%emt 0:00:08]} Qf3+ {[%emt 0:00:05] Black took control after the opening.  Weighted Error Value: White=0.22 (precise) /Black=0.04 (flawless)} 1/2-1/2

[Event "Icelandic Championship 2022"]
[Site "Selfoss"]
[Date "2022.05.01"]
[Round "9.3"]
[White "Steingrimsson, Hedinn"]
[Black "Kjartansson, Gudmundur"]
[Result "0-1"]
[ECO "B44"]
[WhiteElo "2535"]
[BlackElo "2450"]
[Annotator "TA"]
[PlyCount "166"]
[EventDate "2022.04.21"]
[EventType "tourn"]
[EventCountry "ISL"]
[SourceTitle "playchess.com"]
[Source "ChessBase"]
[SourceQuality "1"]
[TimeControl "40/5400+30:1800+30"]

{[%evp 57,166,-163,-152,-145,-130,-130,-95,-113,-83,-96,-107,-172,-79,-66,-80,-108,-57,-185,-123,-143,-85,-94,-97,-97,47,-57,0,-84,-27,-32,-31,-40,-10,-10,-12,-12,-15,-8,-11,-14,0,8,8,8,8,0,0,0,8,8,40,0,0,-114,-112,-136,-80,-87,-85,-158,-145,-256,-256,-256,-256,-256,-256,-256,-256,-256,-19,-19,-19,-241,-243,-228,-225,-256,-253,-295,-299,-293,-280,-266,-262,-303,-303,-291,-281,-3067,-3176,-2200,-1925,-5085,-1405,-10101,-9397,-9964,-5873,-29982,-29983,-29983,-29984,-29985,-29986,-29986,-29987,-29988,-29989,-29990,-29991]} 1. e4 {[%emt 0:00:01]} c5 {[%emt 0:01:41]} 2. Nf3 {[%emt 0:03:10]} e6 {[%emt 0:01:24]} 3. d4 {[%emt 0:07:12]} cxd4 {[%emt 0:00:03]} 4. Nxd4 {[%emt 0:00:02]} Nc6 {[%emt 0:00:05]} 5. Nb5 {[%emt 0:00:15]} d6 {[%emt 0:00:43]} 6. c4 {[%emt 0:00:03]} Nf6 {[%emt 0:02:24]} 7. N1c3 {[%emt 0:00:41]} a6 {[%emt 0:00:08]} 8. Na3 {[%emt 0:00:02]} Be7 {[%emt 0:00:47]} 9. Be2 {[%emt 0:00:40]} O-O {[%emt 0:00:14]} 10. O-O {[%emt 0:00:14]} b6 {[%emt 0:05:03]} 11. Be3 {[%emt 0:06:08]} Bb7 {[%emt 0:01:37]} 12. Rc1 {[%emt 0:05:14]} Rc8 {[%emt 0:01:47]} 13. Kh1 {[%emt 0:08:43]} Ne5 {[%emt 0:04:13]} 14. f3 {[%emt 0:15:15]} Qc7 {[%emt 0:06:13]} 15. Qe1 {[%emt 0:04:30]} Bd8 {[%emt 0:05:20]} 16. Qf2 {[%emt 0:08:54]} Ned7 {[%emt 0:04:40]} 17. Rfd1 {[%emt 0:03:45]} Qb8 {[%emt 0:01:10]} 18. Bf1 {[%emt 0:02:47]} Bc7 {[%emt 0:07:14]} 19. Qg1 {[%emt 0:03:30]} Kh8 {[%emt 0:02:21]} 20. Nc2 {[%emt 0:05:31]} Rg8 {[%emt 0:00:17]} 21. Bd4 {[%emt 0:01:43]} g5 {[%emt 0:05:43]} 22. Rd2 {[%emt 0:01:10]} Rg6 {[%emt 0:01:07]} 23. Re1 {[%emt 0:01:49]} Kg8 {[%emt 0:04:54]} 24. b4 {[%emt 0:00:40]} Rh6 {[%emt 0:03:30]} 25. h3 {[%emt 0:02:48]} Rg6 {[%emt 0:04:33]} 26. Na4 {[%emt 0:05:56]} g4 {[%emt 0:03:30]} 27. Qe3 {[%emt 0:04:11]} gxf3 {[%emt 0:00:54]} 28. gxf3 {[%emt 0:01:44]} Nh5 {[%emt 0:06:08]} 29. Rg2 {[%emt 0:00:17]} Ng3+ {[%emt 0:00:47]} 30. Kg1 {[%emt 0:00:16]} Nxf1 {[%emt 0:09:13]} 31. Kxf1 {[%emt 0:00:33]} Bc6 {[%emt 0:05:36]} 32. Nb2 {[%emt 0:00:08]} b5 {[%emt 0:00:39]} 33. h4 {[%emt 0:00:22]} e5 {[%emt 0:02:03]} 34. Bc3 {[%emt 0:00:30]} (34. Ba7 $17 Qa8 35. Ree2) 34... Kh8 {[%emt 0:01:13]} (34... Rxg2 $19 {has better winning chances.} 35. Kxg2 Kh8) 35. Rxg6 $17 {[%emt 0:02:59]} fxg6 {[%emt 0:00:17]} 36. h5 {[%emt 0:00:02]} gxh5 {[%emt 0:03:13]} ({Black should play} 36... Rg8 $1 $17 37. c5 dxc5 38. bxc5 a5) 37. Qh6 {[%emt 0:00:44]} ({White has to play} 37. c5 $1 $15) 37... Rf8 {[%emt 0:01:54]} (37... Rg8 $19 {aiming for ...Qe8.} 38. Nd4 exd4 39. Bxd4+ Ne5 40. Bxe5+ dxe5 41. Qf6+ Rg7 42. Qxc6 Qf8) 38. Ke2 $17 {[%emt 0:00:38]} Rf6 {[%emt 0:02:28]} (38... Qe8 $142 $1 {[%cal Re8f7]} 39. Rh1 (39. Rg1 $2 Qf7 $19) 39... Nf6) 39. Qxh5 $17 {[%emt 0:00:28]} Qg8 {[%emt 0:02:06]} 40. Ne3 {[%emt 0:00:49]} Nf8 {[%emt 0:02:07]} (40... bxc4 $17 {...Rf4 is the strong threat.} 41. Kd1 Rf4 42. Nexc4 Bb5) 41. Kd1 {[%emt 0:25:15]} (41. Ng4 $14 Rg6 42. c5) 41... Ne6 {[%emt 0:01:41]} (41... Ng6 $15 42. Rh1 bxc4 43. Nbxc4 Nf4) 42. Nf5 {[%emt 0:01:48]} (42. c5 $1 $11 {remains equal.} Nf4 43. Qh4) 42... Qg5 {[%emt 0:08:44]} (42... bxc4 $17 {Strongly threatening ...Ng7.} 43. Ne7 (43. Nxc4 $2 Ng7 $19) 43... Qe8 44. Qxe8+ Bxe8) 43. Rh1 {[%emt 0:04:47]} Qxh5 {[%emt 0:00:21]} 44. Rxh5 {[%emt 0:00:01]} Ng7 {[%emt 0:01:09]} 45. Rh6 {[%emt 0:00:31]} Rxh6 {[%emt 0:00:22]} 46. Nxh6 {[%emt 0:00:01]} Ne6 {[%emt 0:00:38]} 47. c5 {[%emt 0:00:48]} dxc5 {[%emt 0:00:45]} 48. bxc5 {[%emt 0:03:55]} Kg7 {[%emt 0:08:19]} 49. Nf5+ {[%emt 0:00:13]} Kf6 {[%emt 0:02:53]} 50. Nd3 {[%emt 0:01:29]} Ng5 {[%emt 0:00:10]} 51. Nh4 {[%emt 0:00:04]} a5 {[%emt 0:02:39]} 52. a3 {[%emt 0:00:03]} Bd7 {[%emt 0:04:11]} 53. Ke2 {[%emt 0:00:24]} Bh3 {[%emt 0:01:52]} 54. Ke3 {[%emt 0:00:42]} (54. Nf4 $5 {[%cal Rf4d5]} Kf7 55. Nd5 $14) 54... Ke6 {[%emt 0:01:07]} 55. Nc1 {[%emt 0:02:42]} (55. Bxe5 $11 Bxe5 56. Nxe5 Kxe5 57. f4+ Kf6 58. fxg5+ Kxg5 59. Nf3+ Kf6 60. e5+ Ke7 61. Nd4) 55... Bd8 $1 $17 {[%emt 0:00:26]} 56. Be1 {[%emt 0:00:25]} Be7 {[%emt 0:02:52]} ({Better is} 56... Bf1 57. Nf5 Nh3) 57. Nd3 $17 {[%emt 0:00:47]} Bf1 {[%emt 0:00:23]} 58. Bxa5 {[%emt 0:00:34]} (58. c6 $142) 58... Nh3 $1 $17 {[%emt 0:00:48]} 59. Nf5 {[%emt 0:00:10]} (59. Be1 $17) 59... Bg5+ $19 {[%emt 0:00:20]} 60. f4 {[%emt 0:00:03]} exf4+ {[%emt 0:00:15]} 61. Kd4 {[%emt 0:01:08]} Bf6+ $1 {[%emt 0:01:05]} 62. e5 {[%emt 0:00:01]} Bxd3 {[%emt 0:00:29]} (62... Kxf5 63. exf6 Kxf6 64. c6 Bxd3 65. Kxd3 $11) 63. Kxd3 {[%emt 0:00:07]} Nf2+ $2 {[%emt 0:00:39]} ({Weaker is} 63... Kxf5 64. exf6 Kxf6 65. c6 $11 (65. Ke4 Ke6 $11)) (63... Kxe5 $2 {[#]} 64. c6 $1 f3 65. c7 $1 Nf4+ 66. Kc2 Kxf5 67. c8=Q+ $18) (63... Bxe5 $19 64. Nd4+ Bxd4 65. Kxd4 Ng5) 64. Ke2 $11 {[%emt 0:00:27]} Bxe5 {[%emt 0:00:08]} 65. Nh4 $2 {[%emt 0:01:23]} (65. Nd6 $1 $11) 65... Ne4 $19 {[%emt 0:00:15]} 66. c6 {[%emt 0:00:01]} Kd6 {[%emt 0:01:08]} 67. Nf3 {[%emt 0:00:13]} Bb2 {[%emt 0:00:27]} 68. Kd3 {[%emt 0:00:46]} Nc5+ {[%emt 0:00:21]} 69. Kc2 {[%emt 0:00:15]} Bf6 {[%emt 0:00:24]} (69... Bxa3 $2 70. c7 Kd7 71. Ne5+ Kc8 72. Nc6 $18) 70. c7 {[%emt 0:00:31]} Kd7 {[%emt 0:00:09]} 71. Bb6 {[%emt 0:00:55]} Ne6 {[%emt 0:00:30]} 72. Kd3 {[%emt 0:00:16]} Nxc7 {[%emt 0:00:17]} 73. Bxc7 $2 {[%emt 0:00:45]} (73. Bd4 Be7 74. Bb2) 73... Kxc7 $19 {[%emt 0:00:03]} 74. Ke4 {[%emt 0:00:05]} Kb6 {[%emt 0:01:05]} 75. Kxf4 {[%emt 0:00:20]} Kc5 {[%emt 0:00:44]} 76. Kf5 {[%emt 0:01:19]} Bb2 {[%emt 0:00:18]} 77. Ng5 {[%emt 0:00:14]} Bxa3 {[%emt 0:00:39]} 78. Nxh7 {[%emt 0:00:56]} Kd4 {[%emt 0:00:19]} 79. Ng5 {[%emt 0:00:24]} b4 {[%emt 0:01:09]} 80. Nf3+ {[%emt 0:00:44]} Kc3 {[%emt 0:00:26]} 81. Ke4 {[%emt 0:00:24]} b3 {[%emt 0:00:11]} 82. Ke3 {[%emt 0:00:38]} Bc1+ {[%emt 0:00:16]} 83. Ke2 {[%emt 0:00:19]} b2 {[%emt 0:00:04]} 0-1

[Event "Icelandic Championship 2022"]
[Site "Selfoss"]
[Date "2022.05.01"]
[Round "9.4"]
[White "Thorhallsson, Throstur"]
[Black "Thorhallsson, Simon"]
[Result "1/2-1/2"]
[ECO "B90"]
[WhiteElo "2414"]
[BlackElo "2245"]
[Annotator "TA"]
[PlyCount "61"]
[EventDate "2022.04.21"]
[EventType "tourn"]
[EventCountry "ISL"]
[SourceTitle "playchess.com"]
[Source "ChessBase"]
[SourceQuality "1"]
[TimeControl "40/5400+30:1800+30"]

{[%evp 12,61,31,18,38,29,29,23,49,-7,-9,-7,-21,-24,7,-8,0,-16,-18,-104,-41,-41,-40,-41,-41,-41,-40,-41,-41,-41,-41,-41,-28,-28,-28,-28,-28,-28,-28,-28,-28,-28,-28,-29,-29,-29,-29,-29,-29,-29,-29,-14]} 1. e4 {[%emt 0:00:05]} c5 {[%emt 0:00:06]} 2. Nf3 {[%emt 0:00:23]} d6 {[%emt 0:00:10]} 3. d4 {[%emt 0:00:11]} cxd4 {[%emt 0:00:07]} 4. Nxd4 {[%emt 0:00:07]} Nf6 {[%emt 0:00:07]} 5. Nc3 {[%emt 0:00:11]} a6 {[%emt 0:00:07]} 6. h3 {[%emt 0:01:09]} e5 {[%emt 0:00:21] 6...e5 is better than 6...e6.} 7. Nde2 {[%emt 0:00:10]} h5 {[%emt 0:00:16] B90: Sicilian Najdorf: Unusual White 6th moves, 6 Be3 Ng4 and 6 Be3 e5.} 8. g3 {[%emt 0:00:52]} Be7 {[%emt 0:00:19]} 9. Bg2 {[%emt 0:01:44]} b5 {[%emt 0:00:10][%cal Bb7b5,Bb5b4][%mdl 32] White has an edge.} 10. a4 {[%emt 0:02:34]} (10. Nd5 $14) 10... b4 $11 {[%emt 0:00:14]} 11. Nd5 {[%emt 0:00:05]} a5 {[%emt 0:02:53]} 12. c3 {[%emt 0:01:53] [#]} Na6 $146 {[%emt 0:01:19][%cal Bb8a6,Ba6c5,Bc5e6][%mdl 32]} ({Predecessor:} 12... bxc3 13. Nexc3 Be6 14. O-O Nxd5 15. Nxd5 Bxd5 16. Qxd5 Nd7 17. Bd2 O-O 18. b4 axb4 19. Bxb4 {1-0 (32) Quparadze,G (2476)-Thorhallsson,S (2199) Reykjavik 2021}) 13. Nxe7 {[%emt 0:11:54]} Qxe7 {[%emt 0:07:40]} (13... Kxe7 {is interesting.} 14. Bg5 Rb8 15. O-O Nc5) 14. Bg5 {[%emt 0:00:46]} Nc5 {[%emt 0:04:47]} 15. c4 {[%emt 0:08:50] [#]} (15. cxb4 $11 axb4 16. Nc1) 15... Bb7 {[%emt 0:07:52]} (15... Qe6 $1 $17 16. Bxf6 Qxf6) 16. f3 $15 {[%emt 0:00:50]} Ne6 {[%emt 0:08:04] Pair of Knights!} 17. Be3 {[%emt 0:02:27]} h4 {[%emt 0:07:15]} 18. g4 {[%emt 0:03:10]} g5 {[%emt 0:01:45]} 19. Qd2 {[%emt 0:01:22]} Nd7 {[%emt 0:01:10]} 20. b3 {[%emt 0:05:55]} Ndc5 {[%emt 0:01:21]} 21. Rb1 {[%emt 0:00:36]} f6 {[%emt 0:01:52]} 22. O-O {[%emt 0:00:26] Black has an edge.} O-O {[%emt 0:00:25]} 23. Rfd1 {[%emt 0:00:21]} Rfd8 {[%emt 0:00:42]} 24. Kh2 {[%emt 0:00:36]} Rac8 {[%emt 0:00:30]} 25. Rb2 {[%emt 0:02:33]} Kg7 {[%emt 0:01:08]} 26. Qe1 {[%emt 0:00:30]} Rd7 {[%emt 0:02:50]} 27. Bf2 {[%emt 0:02:36]} Rh8 {[%emt 0:01:59]} 28. Be3 {[%emt 0:00:54]} Bc6 {[%emt 0:00:46][%cal Oc5b3]} 29. Nc1 {[%emt 0:03:35]} Rhd8 {[%emt 0:03:13]} 30. Bf1 {[%emt 0:01:39]} Ba8 {[%emt 0:02:12]} 31. Qf2 {[%emt 0:01:59] Weighted Error Value: White=0.10 (very precise) /Black=0.07 (flawless)} 1/2-1/2